bitfinex-derivatives/quotes_SOLF0:USTF0_20250606
["timestamp","ask_amount","ask_price","bid_price","bid_amount"]
[1749175178231,6.07299511,145.48,145.47,0.05162634]
[1749175179229,12.94359511,145.48,145.47,0.05162634]
[1749175183931,41.5903,145.49,145.47,0.05162634]
[1749175184126,6.06709949,145.48,145.47,0.05162634]
[1749175184328,41.5903,145.49,145.47,0.05162634]
[1749175185031,34.72,145.49,145.47,0.05162634]
[1749175185231,0.05163,145.5,145.47,0.05162634]
[1749175185428,0.05163,145.5,145.48,6.8706]
[1749175189535,0.05163,145.5,145.49,6.8702]
[1749175195331,34.72,145.55,145.51,6.8691]
[1749175195532,10.9906385,145.54,145.51,6.8691]
[1749175195733,6.0735908,145.53,145.51,6.8691]
[1749175195927,41.5878,145.55,145.51,6.8691]
[1749175196139,10.9905843,145.54,145.51,6.8691]
[1749175196333,12.94191094,145.53,145.51,0.05008614]
[1749175196530,6.8684,145.53,145.51,0.05008614]
[1749175202752,6.8688,145.52,145.51,0.05008614]
[1749175202946,0.04475999,145.54,145.51,0.05008614]
[1749175203153,6.06218311,145.53,145.51,0.05008614]
[1749175203351,0.04475999,145.54,145.51,0.05008614]
[1749175203551,12.93071419,145.53,145.51,0.05008614]
[1749175203755,6.8685,145.53,145.51,0.05008614]
[1749175204151,6.91275999,145.54,145.51,0.05008614]
[1749175204457,6.06370149,145.53,145.51,0.05008614]
[1749175204758,0.04475999,145.54,145.51,0.05008614]
[1749175204961,12.94363871,145.53,145.51,0.05008614]
[1749175205155,6.8684,145.53,145.51,0.05008614]
[1749175205459,6.0757659,145.52,145.51,0.05008614]
[1749175205759,14.18237302,145.52,145.48,3.17172803]
[1749175205955,6.0757659,145.51,145.48,3.17172803]
[1749175206155,3.17172803,145.52,145.48,3.17172803]
[1749175206360,6.07652549,145.51,145.48,3.17172803]
[1749175206552,6.8696,145.51,145.48,3.17172803]
[1749175206753,6.91659288,145.51,145.48,3.22371807]
[1749175207159,6.91659288,145.51,145.48,10.09441807]
[1749175208158,6.91659288,145.51,145.48,3.22371807]
[1749175209159,6.91659288,145.51,145.48,0.05199004]
[1749175209558,41.59659288,145.51,145.48,6.92269004]
[1749175210359,34.72699288,145.51,145.48,6.92269004]
[1749175212159,0.04699288,145.51,145.49,4.95723518]
[1749175212558,0.04699288,145.51,145.5,6.8698]
[1749175218866,34.66,145.57,145.54,6.8678]
[1749175219068,6.07285044,145.56,145.54,11.82503518]
[1749175219263,34.66,145.57,145.54,11.82503518]
[1749175219464,6.07153806,145.56,145.54,4.95723518]
[1749175219770,0.04670183,145.56,145.54,5.00578361]
[1749175219971,6.91360183,145.56,145.54,5.00578361]
[1749175220476,0.04670183,145.56,145.54,5.00578361]
[1749175220973,0.04670183,145.56,145.54,11.87348361]
[1749175221369,0.04670183,145.56,145.54,5.00578361]
[1749175221670,0.04670183,145.56,145.55,6.8674]
[1749175222971,6.8642,145.62,145.58,6.8656]
[1749175223178,6.07085601,145.61,145.58,6.8656]
[1749175223374,6.8642,145.62,145.58,6.8656]
[1749175223576,6.06809223,145.61,145.58,6.8656]
[1749175223770,6.8642,145.62,145.58,6.8656]
[1749175223970,0.04717762,145.61,145.59,0.04730076]
[1749175226882,6.91167762,145.61,145.59,0.04730076]
[1749175230777,0.04717762,145.61,145.54,2.2296]
[1749175230984,6.06762245,145.6,145.54,7.18683518]
[1749175231280,6.866,145.58,145.54,14.05433518]
[1749175231882,0.05168468,145.57,145.55,0.04983228]
[1749175232274,6.91838468,145.57,145.55,0.04983228]
[1749175232583,0.05168468,145.57,145.55,0.04983228]
[1749175235682,6.91838468,145.57,145.55,0.04983228]
[1749175236286,0.05168468,145.57,145.55,0.04983228]
[1749175239881,6.91808468,145.57,145.55,0.04983228]
[1749175240179,0.05168468,145.57,145.55,0.04983228]
[1749175241276,6.91828468,145.57,145.55,0.04983228]
[1749175245189,6.91828468,145.57,145.55,3.21978619]
[1749175245690,0.05168468,145.57,145.55,3.21978619]
[1749175246387,0.05168468,145.57,145.55,10.08708619]
[1749175246889,0.05168468,145.57,145.55,3.21978619]
[1749175247083,6.91828468,145.57,145.55,3.21978619]
[1749175247688,0.05168468,145.57,145.55,3.21978619]
[1749175250286,0.05168468,145.57,145.55,10.08698619]
[1749175251781,0.05168468,145.57,145.55,3.21978619]
[1749175252594,0.05168468,145.57,145.56,3.16995391]
[1749175254288,0.05168468,145.57,145.55,10.08688619]
[1749175260505,0.05168468,145.57,145.55,3.21978619]
[1749175262999,0.05168468,145.57,145.55,10.08718619]
[1749175265901,0.05168468,145.57,145.55,3.21978619]
[1749175266406,6.06858259,145.56,145.55,0.04983228]
[1749175269615,12.93548259,145.56,145.55,0.04983228]
[1749175269807,17.89785545,145.56,145.55,0.04983228]
[1749175270613,12.93548259,145.56,145.55,0.04983228]
[1749175270808,17.89235972,145.56,145.55,0.04983228]
[1749175271003,17.89386868,145.56,145.55,0.04983228]
[1749175271208,12.93548259,145.56,145.55,0.04983228]
[1749175271409,21.06411414,145.56,145.55,0.04983228]
[1749175272515,21.0647671,145.56,145.55,0.04983228]
[1749175272813,16.10573317,145.56,145.55,0.04983228]
[1749175273015,14.19995662,145.56,145.55,0.04983228]
[1749175273614,14.19995525,145.56,145.55,0.04983228]
[1749175273911,14.19999813,145.56,145.55,0.04983228]
[1749175274107,9.23883317,145.56,145.55,0.04983228]
[1749175274512,14.20638,145.56,145.55,0.04983228]
[1749175274914,11.03612457,145.56,145.55,0.04983228]
[1749175275724,11.03072349,145.56,145.55,0.04983228]
[1749175276414,11.03072334,145.56,145.55,0.04983228]
[1749175276614,11.03072339,145.56,145.55,0.04983228]
[1749175278115,11.03119219,145.56,145.55,0.04983228]
[1749175278417,11.03119218,145.56,145.55,0.04983228]
[1749175278618,6.06858259,145.56,145.55,0.04983228]
[1749175278817,11.03119246,145.56,145.55,0.04983228]
[1749175279220,11.03119431,145.56,145.55,0.04983228]
[1749175279619,11.0310083,145.56,145.55,0.04983228]
[1749175279814,17.8979083,145.56,145.55,0.04983228]
[1749175280024,20.83991996,145.56,145.55,0.04983228]
[1749175280318,20.83997122,145.56,145.55,0.04983228]
[1749175280520,17.89791724,145.56,145.55,0.04983228]
[1749175280913,11.03101724,145.56,145.55,0.04983228]
[1749175281411,11.02531645,145.56,145.55,0.04983228]
[1749175282216,6.06858259,145.56,145.55,0.04983228]
[1749175282420,11.02531514,145.56,145.55,0.04983228]
[1749175282811,17.89221514,145.56,145.55,0.04983228]
[1749175283017,21.06246572,145.56,145.55,0.04983228]
[1749175283219,24.00996478,145.56,145.55,0.04983228]
[1749175283522,24.01183643,145.56,145.55,0.04983228]
[1749175283714,16.10573317,145.56,145.55,0.04983228]
[1749175283912,24.01185354,145.56,145.55,0.04983228]
[1749175284111,30.42152972,145.56,145.55,0.04983228]
[1749175284315,24.01185354,145.56,145.55,0.04983228]
[1749175285211,24.01185354,145.56,145.46,34.58]
[1749175285212,14.19743903,145.56,145.46,34.58]
[1749175285412,3.17025058,145.5,145.46,37.75025058]
[1749175285618,3.17025058,145.5,145.46,3.17025058]
[1749175285820,3.17025058,145.5,145.47,3.17025058]
[1749175286018,3.17025058,145.52,145.49,3.17025058]
[1749175286214,3.21471119,145.52,145.49,3.21956585]
[1749175286816,10.08381119,145.52,145.49,3.21956585]
[1749175287224,9.22685212,145.51,145.49,0.04931527]
[1749175287522,10.03985058,145.51,145.49,0.04931527]
[1749175287920,6.06377685,145.5,145.49,0.04931527]
[1749175288317,10.03985058,145.51,145.49,0.04931527]
[1749175289223,3.17025058,145.51,145.49,0.04931527]
[1749175290026,3.21471119,145.52,145.49,0.04931527]
[1749175290221,12.91914802,145.51,145.49,0.04931527]
[1749175290422,6.8693,145.51,145.49,0.04931527]
[1749175290818,6.8697,145.5,145.49,0.04931527]
[1749175291131,6.04335052,145.5,145.49,0.04931527]
[1749175291324,37.75025058,145.51,145.49,0.04931527]
[1749175291826,6.04147075,145.5,145.49,0.04931527]
[1749175292030,6.8695,145.5,145.49,0.04931527]
[1749175293231,6.8695,145.5,145.46,3.17025058]
[1749175293232,6.8702,145.49,145.46,3.17025058]
[1749175294231,6.91521553,145.49,145.46,3.22057236]
[1749175294936,0.04501553,145.49,145.48,3.17025058]
[1749175298331,0.04501553,145.49,145.47,3.17025058]
[1749175299335,0.04501553,145.49,145.46,6.92172178]
[1749175299336,10.08556611,145.49,145.46,0.05032178]
[1749175299638,10.08556611,145.49,145.46,3.22057236]
[1749175299838,6.91531553,145.49,145.46,3.22057236]
[1749175300035,10.08556611,145.49,145.46,3.22057236]
[1749175300237,0.04501553,145.49,145.47,3.17025058]
[1749175301435,6.91521553,145.49,145.47,3.17025058]
[1749175301935,6.91521553,145.49,145.46,3.22057236]
[1749175303334,3.21526611,145.49,145.46,0.05032178]
[1749175303536,3.17025058,145.48,145.46,0.05032178]
[1749175303937,3.17025058,145.47,145.46,0.05032178]
[1749175304134,43.76074149,145.47,145.37,34.56]
[1749175304336,3.17025058,145.44,145.41,3.17025058]
[1749175304540,10.04265058,145.45,145.41,3.17025058]
[1749175305130,6.92310187,145.44,145.42,0.05250488]
[1749175305741,6.8729,145.43,145.42,0.05250488]
[1749175306039,0.05070187,145.44,145.42,0.05250488]
[1749175306736,6.92320187,145.44,145.42,0.05250488]
[1749175309141,6.8728,145.43,145.42,0.05250488]
[1749175309738,0.05070187,145.44,145.42,0.05250488]
[1749175310039,0.05070187,145.44,145.42,5.01456214]
[1749175310237,34.56,145.5,145.42,5.01456214]
[1749175310541,34.56,145.5,145.45,4.96205726]
[1749175311144,4.96205726,145.48,145.46,0.04456894]
[1749175311541,10.97613787,145.48,145.46,0.04456894]
[1749175311745,4.96205726,145.48,145.4,4.96205726]
[1749175311941,4.96205726,145.46,145.4,4.96205726]
[1749175312145,34.56,145.45,145.4,4.96205726]
[1749175312751,0.04377578,145.44,145.41,0.04606876]
[1749175312943,6.8731,145.43,145.41,0.04606876]
[1749175313551,0.04377578,145.44,145.41,0.04606876]
[1749175313552,6.8733,145.42,145.41,0.04606876]
[1749175320657,5.00583304,145.44,145.41,0.04606876]
[1749175320859,0.04377578,145.44,145.41,0.04606876]
[1749175321553,6.91627578,145.44,145.41,0.04606876]
[1749175321755,0.04377578,145.44,145.41,0.04606876]
[1749175323954,6.91637578,145.44,145.41,0.04606876]
[1749175324154,0.04377578,145.44,145.41,0.04606876]
[1749175324356,4.96205726,145.43,145.41,0.04606876]
[1749175324657,0.04377578,145.44,145.4,4.96205726]
[1749175324950,6.8712,145.47,145.4,4.96205726]
[1749175325153,34.56,145.48,145.42,4.96205726]
[1749175325351,34.56,145.48,145.44,4.96205726]
[1749175325747,34.56,145.48,145.45,0.0497495]
[1749175325748,0.05073063,145.47,145.45,0.0497495]
[1749175325949,0.05073063,145.47,145.45,6.9212495]
[1749175330669,0.05073063,145.47,145.45,0.0497495]
[1749175332768,6.8714,145.46,145.45,0.0497495]
[1749175332966,0.05073063,145.47,145.45,0.0497495]
[1749175333265,6.8713,145.46,145.45,0.0497495]
[1749175336167,0.05073063,145.47,145.45,0.0497495]
[1749175336369,404.24623491,145.55,145.45,0.0497495]
[1749175336370,6.02373993,145.52,145.46,44.46411452]
[1749175336670,6.42395577,145.55,145.5,4.96205726]
[1749175336671,6.8676,145.54,145.5,4.96205726]
[1749175336866,6.02337217,145.53,145.5,4.96205726]
[1749175337064,6.8676,145.54,145.5,4.96205726]
[1749175337260,0.04465548,145.53,145.51,0.04649755]
[1749175340775,6.8684,145.52,145.51,0.04649755]
[1749175341771,6.8692,145.51,145.46,4.96205726]
[1749175342071,34.52,145.52,145.46,4.96205726]
[1749175342263,34.52,145.52,145.46,11.83295726]
[1749175342768,0.04485244,145.5,145.47,6.8706]
[1749175342969,0.04485244,145.5,145.48,0.05267686]
[1749175347779,6.91425244,145.5,145.48,0.05267686]
[1749175348077,0.04485244,145.5,145.48,0.05267686]
[1749175348476,6.8698,145.49,145.48,0.05267686]
[1749175355381,0.04485244,145.5,145.48,0.05267686]
[1749175357782,0.04485244,145.5,145.49,6.8698]
[1749175357982,0.04485244,145.5,145.48,0.05267686]
[1749175358189,0.04485244,145.5,145.48,6.92277686]
[1749175360590,0.04485244,145.5,145.49,6.8698]
[1749175366687,6.39066086,145.58,145.49,6.88]
[1749175366890,34.5,145.6,145.56,4.96205726]
[1749175367287,41.3636,145.63,145.59,6.8648]
[1749175367587,13.8584799,145.62,145.58,4.96205726]
[1749175367884,0.04857428,145.61,145.59,0.05261039]
[1749175368888,0.04857428,145.61,145.59,6.91741039]
[1749175370089,2.1499,145.68,145.59,6.91741039]
[1749175370090,6.39066086,145.69,145.6,4.96205726]
[1749175370295,53.302677,145.68,145.6,4.96205726]
[1749175370489,10.89051266,145.67,145.6,4.96205726]
[1749175370688,6.01675755,145.66,145.6,4.96205726]
[1749175370889,6.8623,145.65,145.61,6.8639]
[1749175371087,0.04998696,145.64,145.62,0.04891929]
[1749175371590,6.91318696,145.64,145.62,0.04891929]
[1749175371981,0.04998696,145.64,145.62,0.04891929]
[1749175373090,6.91298696,145.64,145.62,0.04891929]
[1749175382101,0.04998696,145.64,145.62,0.04891929]
[1749175382304,0.04998696,145.64,145.62,5.01097655]
[1749175382692,0.04998696,145.64,145.63,6.8633]
[1749175383399,6.9341,145.71,145.63,39.44205726]
[1749175383796,17.89902827,145.71,145.63,39.44205726]
[1749175384099,11.89615726,145.71,145.63,39.44205726]
[1749175384299,6.90629372,145.68,145.66,0.04910687]
[1749175386803,6.8614,145.67,145.66,0.04910687]
[1749175390099,11.82345726,145.67,145.66,0.04910687]
[1749175390301,6.863,145.64,145.6,11.82655726]
[1749175390496,4.96205726,145.67,145.6,4.96205726]
[1749175390691,4.96205726,145.61,145.52,34.8]
[1749175390895,4.96205726,145.59,145.52,39.76205726]
[1749175391299,0.05286877,145.57,145.54,0.04806539]
[1749175392505,6.91916877,145.57,145.54,0.04806539]
[1749175393008,0.05286877,145.57,145.54,0.04806539]
[1749175393198,0.05286877,145.57,145.54,5.01012265]
[1749175394002,6.91906877,145.57,145.54,5.01012265]
[1749175394303,6.91906877,145.57,145.54,0.04806539]
[1749175396100,0.05286877,145.57,145.54,0.04806539]
[1749175396900,0.05286877,145.57,145.54,6.91556539]
[1749175398595,0.05286877,145.57,145.54,0.04806539]
[1749175399302,6.91906877,145.57,145.54,0.04806539]
[1749175399906,0.05286877,145.57,145.54,6.91546539]
[1749175403401,0.05286877,145.57,145.54,0.04806539]
[1749175403900,11.82905726,145.56,145.54,0.04806539]
[1749175404100,4.96205726,145.56,145.54,0.04806539]
[1749175404508,6.8671,145.55,145.54,0.04806539]
[1749175405713,11.82875726,145.56,145.54,0.04806539]
[1749175407511,6.8671,145.55,145.54,0.04806539]
[1749175409512,11.82875726,145.56,145.54,0.04806539]
[1749175409703,4.96205726,145.56,145.54,0.04806539]
[1749175410218,6.8671,145.55,145.54,0.04806539]
[1749175411713,11.82885726,145.56,145.54,0.04806539]
[1749175412718,6.91906877,145.57,145.54,0.04806539]
[1749175412923,0.05286877,145.57,145.54,0.04806539]
[1749175415023,6.8666,145.56,145.54,0.04806539]
[1749175416024,6.91916877,145.57,145.54,0.04806539]
[1749175416824,0.05286877,145.57,145.54,0.04806539]
[1749175417425,0.05286877,145.57,145.54,6.91546539]
[1749175418025,6.91906877,145.57,145.54,6.91546539]
[1749175418727,6.91906877,145.57,145.54,0.04806539]
[1749175419627,6.8668,145.56,145.54,0.04806539]
[1749175423623,6.8671,145.55,145.54,0.04806539]
[1749175433340,12.88972636,145.55,145.54,0.04806539]
[1749175433839,6.8671,145.55,145.54,0.04806539]
[1749175434138,12.88935174,145.55,145.54,0.04806539]
[1749175434541,18.83319614,145.55,145.48,39.88205726]
[1749175434738,4.96205726,145.53,145.48,39.88205726]
[1749175435042,6.02225174,145.52,145.48,39.88205726]
[1749175435242,6.03255817,145.51,145.48,39.88205726]
[1749175435542,0.04405175,145.51,145.48,39.92560921]
[1749175436041,0.04405175,145.51,145.48,46.79580921]
[1749175436231,6.91305175,145.51,145.48,46.79580921]
[1749175436437,6.91305175,145.51,145.48,34.96355195]
[1749175436637,5.00610901,145.51,145.48,0.04355195]
[1749175436931,12.90273759,145.5,145.48,0.04355195]
[1749175437143,6.8697,145.5,145.48,0.04355195]
[1749175437345,5.00610901,145.51,145.48,0.04355195]
[1749175437544,6.02346072,145.5,145.48,0.04355195]
[1749175437842,6.8699,145.49,145.48,0.04355195]
[1749175439544,0.04405175,145.51,145.48,5.00560921]
[1749175439745,0.04405175,145.51,145.5,4.96205726]
[1749175440141,0.04405175,145.51,145.5,11.83145726]
[1749175441042,0.04405175,145.51,145.5,6.8694]
[1749175451348,0.04405175,145.51,145.49,11.83175726]
[1749175451553,0.04405175,145.51,145.48,0.04355195]
[1749175451950,6.91335175,145.51,145.48,0.04355195]
[1749175452250,0.04405175,145.51,145.48,0.04355195]
[1749175452854,0.04405175,145.51,145.49,6.8695]
[1749175453152,0.04405175,145.51,145.48,0.04355195]
[1749175453543,0.04405175,145.51,145.5,6.8695]
[1749175459354,0.04405175,145.51,145.48,0.04355195]
[1749175459658,18.80022124,145.5,145.44,34.72]
[1749175459855,4.96205726,145.46,145.41,34.72]
[1749175460058,12.89685591,145.45,145.4,2.1279]
[1749175460351,4.96205726,145.42,145.38,6.8748]
[1749175460758,0.04942412,145.41,145.39,0.05202639]
[1749175461256,6.8742,145.4,145.39,0.05202639]
[1749175461451,0.04942412,145.41,145.39,0.05202639]
[1749175465964,0.04942412,145.41,145.39,6.92662639]
[1749175466351,0.04942412,145.41,145.39,0.05202639]
[1749175466556,0.04942412,145.41,145.4,11.83625726]
[1749175467756,2.1248,145.48,145.4,7.20215726]
[1749175468056,34.74,145.48,145.42,4.96205726]
[1749175468254,34.74,145.48,145.45,6.8718]
[1749175468755,34.79039852,145.48,145.45,6.9245914]
[1749175471260,41.66079852,145.48,145.45,0.0527914]
[1749175471762,6.8709,145.47,145.45,0.0527914]
[1749175471959,34.79039852,145.48,145.45,0.0527914]
[1749175472365,6.871,145.47,145.45,0.0527914]
[1749175473265,34.79039852,145.48,145.45,0.0527914]
[1749175474456,6.8714,145.46,145.45,0.0527914]
[1749175482574,6.8722,145.45,145.41,6.8735]
[1749175483079,6.8723,145.44,145.41,6.8735]
[1749175483480,6.91918226,145.44,145.41,6.92127251]
[1749175483671,0.04688226,145.44,145.41,6.92127251]
[1749175484778,34.76688226,145.44,145.41,0.04777251]
[1749175484979,4.96205726,145.43,145.41,0.04777251]
[1749175485684,6.8732,145.42,145.41,0.04777251]
[1749175486088,4.96205726,145.43,145.41,0.04777251]
[1749175486284,11.83495726,145.43,145.41,0.04777251]
[1749175491291,6.8732,145.42,145.41,0.04777251]
[1749175492592,6.8743,145.4,145.36,6.876]
[1749175492891,6.8743,145.4,145.34,44.15735726]
[1749175493594,0.0483533,145.38,145.36,0.04621956]
[1749175493792,0.0483533,145.38,145.37,6.8755]
[1749175495793,39.68205726,145.44,145.41,6.8736]
[1749175496490,34.72,145.44,145.41,6.8736]
[1749175496892,34.76827101,145.44,145.41,6.92512455]
[1749175497283,34.76827101,145.44,145.41,0.05152455]
[1749175497483,41.64057101,145.44,145.41,0.05152455]
[1749175499094,0.04827101,145.44,145.42,6.8731]
[1749175499295,0.04827101,145.44,145.41,0.05152455]
[1749175499689,0.04827101,145.44,145.42,6.8729]
[1749175499992,0.04827101,145.44,145.41,0.05152455]
[1749175500391,0.04827101,145.44,145.42,6.873]
[1749175501290,0.04827101,145.44,145.41,0.05152455]
[1749175501291,0.04827101,145.44,145.43,6.8728]
[1749175502491,0.04827101,145.44,145.42,4.96205726]
[1749175502492,0.04827101,145.44,145.42,11.83515726]
[1749175503292,0.04827101,145.44,145.41,0.05152455]
[1749175503293,0.04827101,145.44,145.41,6.92512455]
[1749175503503,0.04827101,145.44,145.41,0.05152455]
[1749175503902,0.04827101,145.44,145.42,11.83515726]
[1749175505102,0.04827101,145.44,145.42,6.8731]
[1749175505302,0.04827101,145.44,145.41,6.92502455]
[1749175505497,0.04827101,145.44,145.41,0.05152455]
[1749175505901,6.11866184,145.43,145.41,0.05152455]
[1749175506104,6.92087101,145.44,145.41,0.05152455]
[1749175506303,6.11898349,145.43,145.41,0.05152455]
[1749175506509,6.92087101,145.44,145.41,0.05152455]
[1749175506705,6.11956052,145.43,145.41,0.05152455]
[1749175506907,6.92087101,145.44,145.41,0.05152455]
[1749175507108,6.1194866,145.43,145.41,0.05152455]
[1749175507308,6.12015576,145.42,145.41,0.05152455]
[1749175507703,6.8729,145.43,145.41,0.05152455]
[1749175508003,6.12042125,145.42,145.41,0.05152455]
[1749175511705,12.99362125,145.42,145.41,0.05152455]
[1749175511907,22.81011539,145.42,145.41,0.05152455]
[1749175512708,17.95567851,145.42,145.37,6.8755]
[1749175513010,6.12042125,145.41,145.37,6.8755]
[1749175513200,11.83525726,145.42,145.37,6.8755]
[1749175513401,6.11683673,145.41,145.37,6.8755]
[1749175513610,6.11715024,145.4,145.37,6.8755]
[1749175513804,0.04645081,145.4,145.37,6.92391881]
[1749175514007,0.04645081,145.4,145.38,6.8751]
[1749175514306,0.04645081,145.4,145.37,0.04841881]
[1749175514508,0.04645081,145.4,145.39,6.8747]
[1749175514807,0.04645081,145.4,145.37,0.04841881]
[1749175515110,0.04645081,145.4,145.38,6.8749]
[1749175516709,0.04645081,145.4,145.39,6.8747]
[1749175517609,6.16218478,145.4,145.39,6.8747]
[1749175517808,0.04645081,145.4,145.39,6.8747]
[1749175520315,6.16492813,145.4,145.39,6.8747]
[1749175520613,0.04645081,145.4,145.39,6.8747]
[1749175531122,0.04645081,145.4,145.39,11.83675726]
[1749175531820,0.04645081,145.4,145.39,6.8747]
[1749175535718,6.41416869,145.45,145.44,6.8725]
[1749175536027,6.12018903,145.45,145.43,4.96205726]
[1749175536217,2.89785028,145.47,145.44,6.8722]
[1749175536419,6.11876708,145.46,145.44,6.8722]
[1749175536614,2.89629009,145.48,145.44,6.8722]
[1749175536916,6.17031131,145.47,145.45,0.0488182]
[1749175537122,6.1177659,145.46,145.45,0.0488182]
[1749175540521,0.05254541,145.47,145.45,0.0488182]
[1749175540823,0.05254541,145.47,145.45,6.9207182]
[1749175541425,0.05254541,145.47,145.45,0.0488182]
[1749175543624,0.05254541,145.47,145.46,6.8716]
[1749175543828,0.05254541,145.47,145.45,0.0488182]
[1749175544228,0.05254541,145.47,145.46,6.8716]
[1749175550032,34.56,145.52,145.48,4.96205726]
[1749175550232,43.25466869,145.56,145.5,4.96205726]
[1749175550427,10.97136548,145.55,145.5,4.96205726]
[1749175550735,34.56,145.56,145.52,6.8684]
[1749175550935,6.1311143,145.55,145.53,0.04916152]
[1749175551131,0.04944303,145.55,145.53,6.91746152]
[1749175551333,0.04944303,145.55,145.53,0.04916152]
[1749175552530,0.04944303,145.55,145.54,6.8679]
[1749175552737,0.04944303,145.55,145.54,11.82995726]
[1749175553131,0.04944303,145.55,145.54,4.96205726]
[1749175554131,0.04944303,145.55,145.53,5.01121878]
[1749175554438,0.04944303,145.55,145.53,11.87951878]
[1749175557043,0.04944303,145.55,145.53,5.01121878]
[1749175558642,0.04944303,145.55,145.53,11.87951878]
[1749175559143,0.04944303,145.55,145.53,6.91746152]
[1749175559844,0.04944303,145.55,145.53,0.04916152]
[1749175560845,0.04944303,145.55,145.53,6.91736152]
[1749175561442,0.04944303,145.55,145.53,0.04916152]
[1749175561939,39.55150029,145.55,145.53,0.04916152]
[1749175562145,6.8679,145.54,145.53,0.04916152]
[1749175567142,46.41910029,145.55,145.53,0.04916152]
[1749175567346,34.58944303,145.55,145.53,0.04916152]
[1749175567746,34.58944303,145.55,145.53,6.91746152]
[1749175567949,34.58944303,145.55,145.53,0.04916152]
[1749175568351,34.58944303,145.55,145.54,6.8679]
[1749175568545,0.04944303,145.55,145.54,6.8679]
[1749175580857,0.04944303,145.55,145.53,0.04916152]
[1749175581450,0.04944303,145.55,145.54,6.8679]
[1749175584549,0.04944303,145.55,145.54,11.82995726]
[1749175590662,6.41416869,145.65,145.54,11.84205726]
[1749175590969,11.02125108,145.64,145.61,4.96205726]
[1749175591169,6.08612124,145.63,145.61,4.96205726]
[1749175591467,34.56,145.66,145.61,4.96205726]
[1749175591656,11.05536196,145.65,145.62,0.05087387]
[1749175591961,6.067289,145.64,145.62,0.05087387]
[1749175592169,13.94941069,145.63,145.57,39.52205726]
[1749175592362,11.00551656,145.62,145.57,39.52205726]
[1749175592558,6.8644,145.62,145.58,6.8659]
[1749175592960,6.8644,145.62,145.57,39.52205726]
[1749175592961,6.41416869,145.65,145.57,4.96205726]
[1749175593165,4.96205726,145.63,145.6,0.05037284]
[1749175593371,40.66326219,145.62,145.6,0.05037284]
[1749175593563,6.07319901,145.61,145.56,11.82885726]
[1749175593763,34.59006318,145.62,145.56,11.82885726]
[1749175593968,11.01961814,145.61,145.56,11.82885726]
[1749175594167,34.59006318,145.62,145.57,6.8664]
[1749175594367,11.0239857,145.61,145.57,6.8664]
[1749175594564,6.8655,145.59,145.58,0.04895891]
[1749175594867,34.59006318,145.62,145.58,0.04895891]
[1749175595166,6.07828023,145.61,145.58,0.04895891]
[1749175595361,11.02492524,145.6,145.58,0.04895891]
[1749175595568,6.8646,145.61,145.58,0.04895891]
[1749175595569,34.59006318,145.62,145.58,0.04895891]
[1749175595768,13.98669865,145.61,145.58,0.04895891]
[1749175595968,11.02461522,145.6,145.58,0.04895891]
[1749175596168,34.59006318,145.62,145.58,0.04895891]
[1749175596465,13.98774792,145.61,145.58,0.04895891]
[1749175596661,11.02446835,145.6,145.58,0.04895891]
[1749175596866,6.8652,145.6,145.58,0.04895891]
[1749175597665,6.8647,145.61,145.58,0.04895891]
[1749175597867,11.05097051,145.6,145.58,0.04895891]
[1749175598069,6.8647,145.61,145.58,0.04895891]
[1749175598259,11.051932,145.6,145.58,0.04895891]
[1749175598460,6.8647,145.61,145.58,0.04895891]
[1749175598760,6.07631235,145.6,145.58,0.04895891]
[1749175598959,6.8647,145.61,145.58,0.04895891]
[1749175599159,17.91891106,145.6,145.58,0.04895891]
[1749175599467,6.865,145.6,145.58,0.04895891]
[1749175601776,6.8655,145.59,145.58,0.04895891]
[1749175602069,12.94264389,145.59,145.58,0.04895891]
[1749175602276,6.8665,145.57,145.54,9.1301]
[1749175602862,6.8661,145.58,145.54,9.1301]
[1749175603271,0.04475348,145.57,145.55,0.04975919]
[1749175603872,0.04475348,145.57,145.55,6.91715919]
[1749175605074,0.04475348,145.57,145.56,6.8669]
[1749175609378,0.04475348,145.57,145.56,11.82895726]
[1749175614670,0.04475348,145.57,145.56,6.8669]
[1749175621885,11.10735181,145.57,145.55,6.91685919]
[1749175622087,6.08790575,145.56,145.55,6.91685919]
[1749175622283,6.08790575,145.56,145.55,0.04975919]
[1749175623881,0.04475348,145.57,145.55,0.04975919]
[1749175624188,0.04475348,145.57,145.56,6.8669]
[1749175628291,0.04475348,145.57,145.55,6.91685919]
[1749175628483,0.04475348,145.57,145.55,0.04975919]
[1749175630789,0.04475348,145.57,145.55,6.91675919]
[1749175631890,0.04475348,145.57,145.55,0.04975919]
[1749175632086,6.08985353,145.56,145.55,0.04975919]
[1749175632894,0.04475348,145.57,145.55,0.04975919]
[1749175633695,6.08854466,145.56,145.55,0.04975919]
[1749175634090,0.04475348,145.57,145.55,0.04975919]
[1749175634395,6.91125348,145.57,145.55,0.04975919]
[1749175634695,6.08845325,145.56,145.55,0.04975919]